[Event "Late-Titled-Tuesday-Blitz-February-20-2024"]
[Site "Chess.com"]
[Date "2024.02.20"]
[Round "4"]
[White "emeli_chess"]
[Black "Ajedrez_con_German"]
[Result "1/2-1/2"]
[WhiteElo "2427"]
[BlackElo "2640"]
[TimeControl "180+1"]
[EndTime "14:40:47 PST"]
[Termination "Game drawn - insufficient material"]

1. d4 {[%clk 0:03:00.9]} 1... Nf6 {[%clk 0:02:55]} 2. c4 {[%clk 0:03:00.8]} 2...
e6 {[%clk 0:02:52.2]} 3. Nc3 {[%clk 0:03:00.8]} 3... d5 {[%clk 0:02:52.4]} 4.
cxd5 {[%clk 0:03:00.5]} 4... Nxd5 {[%clk 0:02:53.3]} 5. e4 {[%clk 0:03:00]} 5...
Nxc3 {[%clk 0:02:53.6]} 6. bxc3 {[%clk 0:03:00.6]} 6... c5 {[%clk 0:02:54.4]} 7.
Nf3 {[%clk 0:03:00.7]} 7... cxd4 {[%clk 0:02:54.7]} 8. cxd4 {[%clk 0:03:01.1]}
8... Bb4+ {[%clk 0:02:55.4]} 9. Bd2 {[%clk 0:03:01.5]} 9... Bxd2+ {[%clk
0:02:56.1]} 10. Qxd2 {[%clk 0:03:01.9]} 10... O-O {[%clk 0:02:57]} 11. Bd3
{[%clk 0:03:02]} 11... Nd7 {[%clk 0:02:57.4]} 12. O-O {[%clk 0:03:01]} 12... b6
{[%clk 0:02:58]} 13. Rad1 {[%clk 0:02:59.5]} 13... Bb7 {[%clk 0:02:58.4]} 14.
Rfe1 {[%clk 0:02:58.9]} 14... Rc8 {[%clk 0:02:57.6]} 15. Bb1 {[%clk 0:02:54.8]}
15... Qc7 {[%clk 0:02:48.8]} 16. d5 {[%clk 0:02:50.4]} 16... Ne5 {[%clk
0:02:42.5]} 17. Nxe5 {[%clk 0:02:38.8]} 17... Qxe5 {[%clk 0:02:42.2]} 18. f4
{[%clk 0:02:35.8]} 18... Qc3 {[%clk 0:02:16.8]} 19. Qxc3 {[%clk 0:02:29.7]}
19... Rxc3 {[%clk 0:02:17.7]} 20. d6 {[%clk 0:02:29.7]} 20... f6 {[%clk
0:02:10.5]} 21. e5 {[%clk 0:02:29.1]} 21... Kf7 {[%clk 0:01:51.9]} 22. Rc1
{[%clk 0:02:24.9]} 22... Rc5 {[%clk 0:01:44.2]} 23. Rxc5 {[%clk 0:02:22]} 23...
bxc5 {[%clk 0:01:44.4]} 24. Be4 {[%clk 0:02:10.8]} 24... Bxe4 {[%clk 0:01:43.4]}
25. Rxe4 {[%clk 0:02:10.5]} 25... fxe5 {[%clk 0:01:33.2]} 26. fxe5 {[%clk
0:02:10.1]} 26... Kg6 {[%clk 0:01:33.7]} 27. Rg4+ {[%clk 0:01:42.6]} 27... Kf5
{[%clk 0:01:27.6]} 28. Rxg7 {[%clk 0:01:42.3]} 28... Kxe5 {[%clk 0:01:26.1]} 29.
Rxa7 {[%clk 0:01:32]} 29... c4 {[%clk 0:01:19.7]} 30. Rc7 {[%clk 0:01:21.9]}
30... Kd4 {[%clk 0:01:16.6]} 31. d7 {[%clk 0:01:21]} 31... Rd8 {[%clk
0:01:16.1]} 32. Kf2 {[%clk 0:01:18.3]} 32... Kd3 {[%clk 0:01:10.3]} 33. Ke1
{[%clk 0:01:17.6]} 33... e5 {[%clk 0:01:03.5]} 34. Rc5 {[%clk 0:01:04.3]} 34...
Rxd7 {[%clk 0:00:55.6]} 35. Rxe5 {[%clk 0:01:04.1]} 35... c3 {[%clk 0:00:55.6]}
36. Kd1 {[%clk 0:01:01.5]} 36... Rf7 {[%clk 0:00:46]} 37. Rd5+ {[%clk
0:01:00.7]} 37... Kc4 {[%clk 0:00:45]} 38. Rd8 {[%clk 0:00:56.5]} 38... Rf1+
{[%clk 0:00:44.4]} 39. Kc2 {[%clk 0:00:54.9]} 39... Rf2+ {[%clk 0:00:44.5]} 40.
Kc1 {[%clk 0:00:55.1]} 40... Rxg2 {[%clk 0:00:41.7]} 41. h4 {[%clk 0:00:48.1]}
41... Rxa2 {[%clk 0:00:39.7]} 42. Rd7 {[%clk 0:00:45.4]} 42... h5 {[%clk
0:00:30.8]} 43. Rc7+ {[%clk 0:00:35.1]} 43... Kd4 {[%clk 0:00:27.7]} 44. Rd7+
{[%clk 0:00:35.1]} 44... Ke4 {[%clk 0:00:26.6]} 45. Rc7 {[%clk 0:00:33.8]} 45...
Kf4 {[%clk 0:00:15.5]} 46. Rxc3 {[%clk 0:00:33.1]} 46... Kg4 {[%clk 0:00:15.7]}
47. Rc4+ {[%clk 0:00:32.7]} 47... Kh3 {[%clk 0:00:16.2]} 48. Kd1 {[%clk
0:00:32.8]} 48... Rf2 {[%clk 0:00:12.9]} 49. Ke1 {[%clk 0:00:32.7]} 49... Rf7
{[%clk 0:00:12.3]} 50. Ke2 {[%clk 0:00:31.9]} 50... Rf6 {[%clk 0:00:12.5]} 51.
Ke1 {[%clk 0:00:32]} 51... Kg3 {[%clk 0:00:12.8]} 52. Ke2 {[%clk 0:00:31.4]}
52... Kg2 {[%clk 0:00:11.9]} 53. Ke1 {[%clk 0:00:30.6]} 53... Re6+ {[%clk
0:00:11.2]} 54. Kd2 {[%clk 0:00:29.9]} 54... Kg3 {[%clk 0:00:11.8]} 55. Kd3
{[%clk 0:00:28.5]} 55... Re7 {[%clk 0:00:11.3]} 56. Kd2 {[%clk 0:00:28.4]} 56...
Re8 {[%clk 0:00:10.5]} 57. Kd3 {[%clk 0:00:28.3]} 57... Rg8 {[%clk 0:00:10.3]}
58. Ke2 {[%clk 0:00:28]} 58... Re8+ {[%clk 0:00:10]} 59. Kf1 {[%clk 0:00:27.4]}
59... Rf8+ {[%clk 0:00:10.5]} 60. Kg1 {[%clk 0:00:27.2]} 60... Rd8 {[%clk
0:00:10.5]} 61. Rc3+ {[%clk 0:00:26.1]} 61... Kxh4 {[%clk 0:00:10.4]} 62. Kg2
{[%clk 0:00:26.3]} 62... Rd2+ {[%clk 0:00:10]} 63. Kg1 {[%clk 0:00:25.5]} 63...
Rd4 {[%clk 0:00:09.5]} 64. Ra3 {[%clk 0:00:25.2]} 64... Kg4 {[%clk 0:00:09.5]}
65. Kh2 {[%clk 0:00:22.5]} 65... Rd2+ {[%clk 0:00:08.3]} 66. Kg1 {[%clk
0:00:22.1]} 66... Rd4 {[%clk 0:00:09.2]} 67. Kh2 {[%clk 0:00:21.6]} 67... h4
{[%clk 0:00:09.9]} 68. Ra8 {[%clk 0:00:19.2]} 68... Rd2+ {[%clk 0:00:09.8]} 69.
Kg1 {[%clk 0:00:19.3]} 69... Rd3 {[%clk 0:00:09.2]} 70. Rg8+ {[%clk 0:00:17.7]}
70... Kh3 {[%clk 0:00:09.5]} 71. Kh1 {[%clk 0:00:15.3]} 71... Rd2 {[%clk
0:00:05.4]} 72. Rg7 {[%clk 0:00:14.7]} 72... Rd3 {[%clk 0:00:03.8]} 73. Rg8
{[%clk 0:00:14.2]} 73... Rd1+ {[%clk 0:00:04.1]} 74. Rg1 {[%clk 0:00:12.8]}
74... Rd2 {[%clk 0:00:05]} 75. Ra1 {[%clk 0:00:12]} 75... Rh2+ {[%clk 0:00:05]}
76. Kg1 {[%clk 0:00:11.4]} 76... Rg2+ {[%clk 0:00:05.9]} 77. Kh1 {[%clk
0:00:11]} 77... Rg3 {[%clk 0:00:06.8]} 78. Ra2 {[%clk 0:00:09.6]} 78... Rd3
{[%clk 0:00:06.1]} 79. Rh2+ {[%clk 0:00:08.3]} 79... Kg3 {[%clk 0:00:06.7]} 80.
Rg2+ {[%clk 0:00:08.6]} 80... Kf4 {[%clk 0:00:06.8]} 81. Rg8 {[%clk 0:00:07.9]}
81... h3 {[%clk 0:00:06.4]} 82. Kh2 {[%clk 0:00:07.7]} 82... Re3 {[%clk
0:00:05.9]} 83. Rg7 {[%clk 0:00:07]} 83... Rd3 {[%clk 0:00:05.4]} 84. Rg8 {[%clk
0:00:07.2]} 84... Re3 {[%clk 0:00:05.1]} 85. Rg7 {[%clk 0:00:07.4]} 85... Kf5
{[%clk 0:00:05.1]} 86. Rg3 {[%clk 0:00:06.6]} 86... Rxg3 {[%clk 0:00:04.5]} 87.
Kxg3 {[%clk 0:00:06.5]} 87... h2 {[%clk 0:00:05.4]} 88. Kxh2 {[%clk 0:00:06.9]}
1/2-1/2

[Event "Late-Titled-Tuesday-Blitz-February-20-2024"]
[Site "Chess.com"]
[Date "2024.02.20"]
[Round "4"]
[White "Jaka_Brilej"]
[Black "azikom"]
[Result "0-1"]
[WhiteElo "2506"]
[BlackElo "2659"]
[TimeControl "180+1"]
[EndTime "14:41:09 PST"]
[Termination "azikom won by checkmate"]

1. d4 {[%clk 0:03:00.9]} 1... d5 {[%clk 0:02:59.5]} 2. c4 {[%clk 0:03:01.2]}
2... e6 {[%clk 0:02:59.7]} 3. Nf3 {[%clk 0:03:01.8]} 3... c6 {[%clk 0:02:59.6]}
4. Nbd2 {[%clk 0:03:00.4]} 4... f5 {[%clk 0:02:59.1]} 5. g3 {[%clk 0:03:00.8]}
5... Nf6 {[%clk 0:02:59.4]} 6. Bg2 {[%clk 0:03:01.3]} 6... Bd6 {[%clk
0:02:58.8]} 7. O-O {[%clk 0:03:01]} 7... O-O {[%clk 0:02:58.9]} 8. Ne1 {[%clk
0:03:01]} 8... Nbd7 {[%clk 0:02:50.3]} 9. Nd3 {[%clk 0:03:01.5]} 9... Ne4 {[%clk
0:02:49.2]} 10. f3 {[%clk 0:02:43.5]} 10... Nxd2 {[%clk 0:02:48.3]} 11. Bxd2
{[%clk 0:02:39.1]} 11... dxc4 {[%clk 0:02:48.5]} 12. Bf4 {[%clk 0:02:39.2]}
12... Nb6 {[%clk 0:02:37.2]} 13. Ne5 {[%clk 0:02:36.7]} 13... Nd5 {[%clk
0:02:35.5]} 14. Qc2 {[%clk 0:02:28.6]} 14... Nxf4 {[%clk 0:02:27.7]} 15. gxf4
{[%clk 0:02:28.4]} 15... b5 {[%clk 0:02:25]} 16. Rad1 {[%clk 0:02:25.6]} 16...
Qb6 {[%clk 0:02:21.4]} 17. Kh1 {[%clk 0:02:15.7]} 17... a6 {[%clk 0:02:03.1]}
18. e4 {[%clk 0:02:14.9]} 18... Ra7 {[%clk 0:02:01.5]} 19. b3 {[%clk 0:02:01.9]}
19... cxb3 {[%clk 0:02:00.1]} 20. axb3 {[%clk 0:02:01.4]} 20... c5 {[%clk
0:01:54.2]} 21. d5 {[%clk 0:01:47.2]} 21... fxe4 {[%clk 0:01:52.4]} 22. fxe4
{[%clk 0:01:46.8]} 22... exd5 {[%clk 0:01:52.2]} 23. exd5 {[%clk 0:01:46.2]}
23... Bf5 {[%clk 0:01:50.1]} 24. Be4 {[%clk 0:01:41]} 24... Bxe4+ {[%clk
0:01:47.7]} 25. Qxe4 {[%clk 0:01:40.5]} 25... Re7 {[%clk 0:01:48.1]} 26. Rg1
{[%clk 0:01:13.1]} 26... Qc7 {[%clk 0:01:46.8]} 27. Rde1 {[%clk 0:01:07.7]}
27... Qc8 {[%clk 0:01:46]} 28. Qg2 {[%clk 0:00:47.5]} 28... Qc7 {[%clk
0:00:59.6]} 29. Qg3 {[%clk 0:00:42.1]} 29... c4 {[%clk 0:00:51.8]} 30. bxc4
{[%clk 0:00:40]} 30... bxc4 {[%clk 0:00:52.7]} 31. Re4 {[%clk 0:00:35.4]} 31...
c3 {[%clk 0:00:50.4]} 32. Rc4 {[%clk 0:00:33.8]} 32... Qa5 {[%clk 0:00:45.7]}
33. Qg2 {[%clk 0:00:17.9]} 33... Rc7 {[%clk 0:00:29.4]} 34. Nc6 {[%clk 0:00:17]}
34... Qb5 {[%clk 0:00:24.4]} 35. Rxc3 {[%clk 0:00:15.4]} 35... Rxf4 {[%clk
0:00:20.6]} 36. Rg3 {[%clk 0:00:15]} 36... Bf8 {[%clk 0:00:17.5]} 37. Nd8 {[%clk
0:00:07.5]} 37... Rd7 {[%clk 0:00:12.7]} 38. Ne6 {[%clk 0:00:07.9]} 38... Rff7
{[%clk 0:00:08.9]} 39. Nxf8 {[%clk 0:00:04.2]} 39... Kxf8 {[%clk 0:00:08.5]} 40.
Rd1 {[%clk 0:00:04]} 40... a5 {[%clk 0:00:07.3]} 41. Rgd3 {[%clk 0:00:03.4]}
41... g6 {[%clk 0:00:07.1]} 42. Qc2 {[%clk 0:00:03.8]} 42... Kg7 {[%clk
0:00:07]} 43. Qc3+ {[%clk 0:00:02.5]} 43... Kg8 {[%clk 0:00:06.9]} 44. Rh3
{[%clk 0:00:02.9]} 44... Rf8 {[%clk 0:00:06.5]} 45. Qd2 {[%clk 0:00:02.5]} 45...
Qc4 {[%clk 0:00:06.1]} 46. Re1 {[%clk 0:00:02.5]} 46... Qxd5+ {[%clk 0:00:05.8]}
47. Qxd5+ {[%clk 0:00:02.4]} 47... Rxd5 {[%clk 0:00:06.3]} 48. Ra3 {[%clk
0:00:03]} 48... Rf7 {[%clk 0:00:05]} 49. Rea1 {[%clk 0:00:03.5]} 49... Ra7
{[%clk 0:00:04.9]} 50. Ra4 {[%clk 0:00:03.6]} 50... Kg7 {[%clk 0:00:05.3]} 51.
Kg2 {[%clk 0:00:04.2]} 51... h5 {[%clk 0:00:05.7]} 52. Kg3 {[%clk 0:00:04]}
52... Kh6 {[%clk 0:00:06.2]} 53. h4 {[%clk 0:00:04.6]} 53... Rb5 {[%clk
0:00:06.5]} 54. R1a3 {[%clk 0:00:04.3]} 54... Rc5 {[%clk 0:00:06.6]} 55. Rf3
{[%clk 0:00:04.7]} 55... Kg7 {[%clk 0:00:06.1]} 56. Rfa3 {[%clk 0:00:05.3]}
56... Rd5 {[%clk 0:00:05.8]} 57. Rf3 {[%clk 0:00:05.9]} 57... Rf5 {[%clk
0:00:05.3]} 58. Rfa3 {[%clk 0:00:06.4]} 58... Kf6 {[%clk 0:00:05.4]} 59. Re3
{[%clk 0:00:06.8]} 59... g5 {[%clk 0:00:05.4]} 60. hxg5+ {[%clk 0:00:05.8]}
60... Kxg5 {[%clk 0:00:06.3]} 61. Rea3 {[%clk 0:00:05.3]} 61... Re5 {[%clk
0:00:06.4]} 62. Rb3 {[%clk 0:00:04.2]} 62... Rf7 {[%clk 0:00:05.8]} 63. Rba3
{[%clk 0:00:04.5]} 63... Rff5 {[%clk 0:00:05.9]} 64. Rb3 {[%clk 0:00:02.8]}
64... Rb5 {[%clk 0:00:06]} 65. Rc3 {[%clk 0:00:02.7]} 65... Rfc5 {[%clk
0:00:06.4]} 66. Rca3 {[%clk 0:00:03]} 66... Rd5 {[%clk 0:00:06.4]} 67. Rf3
{[%clk 0:00:03.5]} 67... Rbc5 {[%clk 0:00:06.4]} 68. Re3 {[%clk 0:00:03.8]}
68... Rb5 {[%clk 0:00:06.6]} 69. Rf3 {[%clk 0:00:04]} 69... Rb4 {[%clk
0:00:06.4]} 70. Rfa3 {[%clk 0:00:01.1]} 70... Rxa4 {[%clk 0:00:06.4]} 71. Rxa4
{[%clk 0:00:02]} 71... Kf6 {[%clk 0:00:06.2]} 72. Kh3 {[%clk 0:00:02.3]} 72...
Ke6 {[%clk 0:00:06.6]} 73. Kh4 {[%clk 0:00:03.2]} 73... Kd6 {[%clk 0:00:07.2]}
74. Ra3 {[%clk 0:00:03.5]} 74... Kc6 {[%clk 0:00:07.7]} 75. Ra4 {[%clk 0:00:04]}
75... Kb5 {[%clk 0:00:07.6]} 76. Ra3 {[%clk 0:00:04.6]} 76... a4 {[%clk
0:00:08]} 77. Ra1 {[%clk 0:00:05.2]} 77... Ka5 {[%clk 0:00:08.2]} 78. Rb1 {[%clk
0:00:05.6]} 78... Rb5 {[%clk 0:00:08.4]} 79. Rf1 {[%clk 0:00:04.9]} 79... Rc5
{[%clk 0:00:08.5]} 80. Ra1 {[%clk 0:00:05.8]} 80... Kb4 {[%clk 0:00:08.3]} 81.
Rg1 {[%clk 0:00:06.2]} 81... a3 {[%clk 0:00:08.3]} 82. Rg3 {[%clk 0:00:06.3]}
82... Ka4 {[%clk 0:00:08.3]} 83. Rg8 {[%clk 0:00:03.7]} 83... Rb5 {[%clk
0:00:08.3]} 84. Ra8+ {[%clk 0:00:04.2]} 84... Kb3 {[%clk 0:00:08.5]} 85. Ra5
{[%clk 0:00:02.4]} 85... Rxa5 {[%clk 0:00:08.2]} 86. Kh3 {[%clk 0:00:01.6]}
86... a2 {[%clk 0:00:08.3]} 87. Kh2 {[%clk 0:00:02.5]} 87... a1=Q {[%clk
0:00:08.9]} 88. Kh3 {[%clk 0:00:03.4]} 88... Qh1+ {[%clk 0:00:08.6]} 89. Kg3
{[%clk 0:00:02.5]} 89... Qg1+ {[%clk 0:00:08.7]} 90. Kf4 {[%clk 0:00:02.9]}
90... Qg4+ {[%clk 0:00:08.6]} 91. Ke3 {[%clk 0:00:03.2]} 91... Rf5 {[%clk
0:00:09]} 92. Kd2 {[%clk 0:00:03.2]} 92... Rf3 {[%clk 0:00:09.6]} 93. Kd1 {[%clk
0:00:04.1]} 93... Qg2 {[%clk 0:00:09.2]} 94. Ke1 {[%clk 0:00:05]} 94... Rf1#
{[%clk 0:00:09.3]} 0-1

[Event "Late-Titled-Tuesday-Blitz-February-20-2024"]
[Site "Chess.com"]
[Date "2024.02.20"]
[Round "4"]
[White "Oleksandr_Bortnyk"]
[Black "PacingRope"]
[Result "1/2-1/2"]
[WhiteElo "3077"]
[BlackElo "2910"]
[TimeControl "180+1"]
[EndTime "14:42:18 PST"]
[Termination "Game drawn by 50-move rule"]

1. e4 {[%clk 0:03:00.9]} 1... c5 {[%clk 0:02:59.7]} 2. c3 {[%clk 0:03:00.4]}
2... Nf6 {[%clk 0:02:59.4]} 3. e5 {[%clk 0:03:00.9]} 3... Nd5 {[%clk 0:03:00.1]}
4. d4 {[%clk 0:03:01.8]} 4... cxd4 {[%clk 0:03:01]} 5. Nf3 {[%clk 0:03:02.6]}
5... Nc6 {[%clk 0:03:01.1]} 6. cxd4 {[%clk 0:03:03.3]} 6... d6 {[%clk
0:03:01.5]} 7. Bc4 {[%clk 0:03:04]} 7... Nb6 {[%clk 0:03:02.1]} 8. Bb5 {[%clk
0:03:04.2]} 8... dxe5 {[%clk 0:03:02.6]} 9. Nxe5 {[%clk 0:03:05.1]} 9... Bd7
{[%clk 0:03:03.2]} 10. Nxd7 {[%clk 0:03:05.8]} 10... Qxd7 {[%clk 0:03:03.4]} 11.
Nc3 {[%clk 0:03:06.5]} 11... e6 {[%clk 0:03:03.9]} 12. O-O {[%clk 0:03:07]}
12... Bd6 {[%clk 0:03:04.1]} 13. Qg4 {[%clk 0:03:06.2]} 13... O-O {[%clk
0:03:04.5]} 14. d5 {[%clk 0:02:53.1]} 14... exd5 {[%clk 0:02:55.7]} 15. Qxd7
{[%clk 0:02:54]} 15... Nxd7 {[%clk 0:02:54.6]} 16. Rd1 {[%clk 0:02:54.9]} 16...
Nb6 {[%clk 0:02:49.6]} 17. Nxd5 {[%clk 0:02:48.3]} 17... Nxd5 {[%clk 0:02:49.3]}
18. Rxd5 {[%clk 0:02:49.2]} 18... Rfd8 {[%clk 0:02:46.7]} 19. Bxc6 {[%clk
0:02:17.2]} 19... bxc6 {[%clk 0:02:43.2]} 20. Rd2 {[%clk 0:02:17.5]} 20... Be5
{[%clk 0:02:37.9]} 21. Rb1 {[%clk 0:02:14.3]} 21... Rxd2 {[%clk 0:02:22.2]} 22.
Bxd2 {[%clk 0:02:15.2]} 22... Rd8 {[%clk 0:02:22.6]} 23. Be1 {[%clk 0:02:14.6]}
23... f5 {[%clk 0:02:18.6]} 24. h3 {[%clk 0:02:11.7]} 24... Kf7 {[%clk
0:02:18.5]} 25. Kf1 {[%clk 0:02:10.1]} 25... Ke6 {[%clk 0:02:15.1]} 26. b3
{[%clk 0:02:10.1]} 26... Ra8 {[%clk 0:02:03.9]} 27. Rc1 {[%clk 0:02:03.8]} 27...
Kd5 {[%clk 0:02:00.8]} 28. Ke2 {[%clk 0:01:46.6]} 28... a5 {[%clk 0:01:55.9]}
29. Rc4 {[%clk 0:01:46.2]} 29... g6 {[%clk 0:01:52]} 30. Ra4 {[%clk 0:01:40.9]}
30... Bc7 {[%clk 0:01:49.3]} 31. Kf3 {[%clk 0:01:40.2]} 31... c5 {[%clk
0:01:46.9]} 32. Bc3 {[%clk 0:01:33]} 32... Kc6 {[%clk 0:01:44.8]} 33. Rc4 {[%clk
0:01:30.9]} 33... Kb5 {[%clk 0:01:41.5]} 34. Ra4 {[%clk 0:01:09.5]} 34... Rd8
{[%clk 0:01:37.2]} 35. Ke2 {[%clk 0:01:09.4]} 35... Re8+ {[%clk 0:01:34.8]} 36.
Kd3 {[%clk 0:01:08.3]} 36... Rd8+ {[%clk 0:01:33.1]} 37. Kc2 {[%clk 0:00:57.1]}
37... Re8 {[%clk 0:01:33.2]} 38. Kd1 {[%clk 0:00:57.3]} 38... Rd8+ {[%clk
0:01:31]} 39. Bd2 {[%clk 0:00:57.9]} 39... Re8 {[%clk 0:01:14.7]} 40. Be3 {[%clk
0:00:56.4]} 40... Rd8+ {[%clk 0:01:09.1]} 41. Kc2 {[%clk 0:00:56.4]} 41... Re8
{[%clk 0:01:03.6]} 42. Rc4 {[%clk 0:00:47.9]} 42... Bd6 {[%clk 0:00:57.7]} 43.
Kd3 {[%clk 0:00:42.4]} 43... Rd8 {[%clk 0:00:53.3]} 44. Ke2 {[%clk 0:00:41.6]}
44... Re8 {[%clk 0:00:52.1]} 45. Kf3 {[%clk 0:00:39.8]} 45... Rd8 {[%clk
0:00:50.7]} 46. g4 {[%clk 0:00:40]} 46... Rf8 {[%clk 0:00:48.3]} 47. gxf5 {[%clk
0:00:39.4]} 47... Rxf5+ {[%clk 0:00:47.3]} 48. Ke2 {[%clk 0:00:38.8]} 48... Rh5
{[%clk 0:00:45.6]} 49. h4 {[%clk 0:00:37.5]} 49... Be7 {[%clk 0:00:45.1]} 50.
Re4 {[%clk 0:00:33.6]} 50... Bxh4 {[%clk 0:00:41.6]} 51. Re6 {[%clk 0:00:33.3]}
51... a4 {[%clk 0:00:38.1]} 52. bxa4+ {[%clk 0:00:32.3]} 52... Kxa4 {[%clk
0:00:39]} 53. Kd3 {[%clk 0:00:32.9]} 53... Kb5 {[%clk 0:00:36.3]} 54. a4+ {[%clk
0:00:33]} 54... Kxa4 {[%clk 0:00:30.5]} 55. Kc4 {[%clk 0:00:32.8]} 55... Ka3
{[%clk 0:00:29.3]} 56. Kc3 {[%clk 0:00:17.1]} 56... Ka4 {[%clk 0:00:22.8]} 57.
Kc4 {[%clk 0:00:15.6]} 57... Ka3 {[%clk 0:00:21.8]} 58. Bxc5+ {[%clk 0:00:11.5]}
58... Rxc5+ {[%clk 0:00:21.6]} 59. Kxc5 {[%clk 0:00:12.4]} 59... Bxf2+ {[%clk
0:00:21.2]} 60. Kc4 {[%clk 0:00:13.3]} 60... g5 {[%clk 0:00:21.4]} 61. Kc3
{[%clk 0:00:02.3]} 61... Ka4 {[%clk 0:00:21]} 62. Re4+ {[%clk 0:00:02.3]} 62...
Kb5 {[%clk 0:00:20.8]} 63. Re5+ {[%clk 0:00:03.2]} 63... Kc6 {[%clk 0:00:20.6]}
64. Rxg5 {[%clk 0:00:04.1]} 64... Kd6 {[%clk 0:00:20.5]} 65. Kd3 {[%clk
0:00:04.3]} 65... Ke6 {[%clk 0:00:20.1]} 66. Rh5 {[%clk 0:00:05.2]} 66... Kd6
{[%clk 0:00:17.7]} 67. Ke4 {[%clk 0:00:06.1]} 67... Kc7 {[%clk 0:00:17.7]} 68.
Rh6 {[%clk 0:00:05.4]} 68... Kb7 {[%clk 0:00:16.7]} 69. Kd5 {[%clk 0:00:05.9]}
69... Bb6 {[%clk 0:00:16.3]} 70. Kc4 {[%clk 0:00:05.1]} 70... Ba7 {[%clk
0:00:15.2]} 71. Kb5 {[%clk 0:00:05.6]} 71... Ka8 {[%clk 0:00:14.1]} 72. Ka6
{[%clk 0:00:03.9]} 72... Bb8 {[%clk 0:00:14.3]} 73. Kb6 {[%clk 0:00:04.2]} 73...
Ba7+ {[%clk 0:00:14.4]} 74. Kc7 {[%clk 0:00:04.4]} 74... Bb8+ {[%clk 0:00:14.9]}
75. Kc6 {[%clk 0:00:04.3]} 75... Ba7 {[%clk 0:00:15.2]} 76. Rh5 {[%clk
0:00:02.1]} 76... Bb8 {[%clk 0:00:15]} 77. Kb6 {[%clk 0:00:02.4]} 77... Ba7+
{[%clk 0:00:15.1]} 78. Kc7 {[%clk 0:00:02.8]} 78... Bb8+ {[%clk 0:00:15.5]} 79.
Kc8 {[%clk 0:00:03.3]} 79... Ba7 {[%clk 0:00:16.1]} 80. Kd7 {[%clk 0:00:03.1]}
80... h6 {[%clk 0:00:15]} 81. Kc6 {[%clk 0:00:03.5]} 81... Bb8 {[%clk
0:00:15.3]} 82. Ra5+ {[%clk 0:00:03.8]} 82... Ba7 {[%clk 0:00:15.8]} 83. Ra4
{[%clk 0:00:03.8]} 83... h5 {[%clk 0:00:15.4]} 84. Rh4 {[%clk 0:00:02.6]} 84...
Bb8 {[%clk 0:00:15.5]} 85. Kb6 {[%clk 0:00:02.1]} 85... Ba7+ {[%clk 0:00:14.8]}
86. Kc7 {[%clk 0:00:02.5]} 86... Bb8+ {[%clk 0:00:15.2]} 87. Kc8 {[%clk
0:00:03.1]} 87... Ba7 {[%clk 0:00:15.3]} 88. Ra4 {[%clk 0:00:03.8]} 88... h4
{[%clk 0:00:15]} 89. Rxh4 {[%clk 0:00:04.7]} 89... Bb8 {[%clk 0:00:15.3]} 90.
Rh8 {[%clk 0:00:04.9]} 90... Bf4 {[%clk 0:00:13.4]} 91. Rf8 {[%clk 0:00:04.6]}
91... Bb8 {[%clk 0:00:12.5]} 92. Rf3 {[%clk 0:00:03.3]} 92... Ba7 {[%clk
0:00:12.2]} 93. Rb3 {[%clk 0:00:03.6]} 93... Bd4 {[%clk 0:00:11.7]} 94. Rb4
{[%clk 0:00:03.6]} 94... Ba7 {[%clk 0:00:12.2]} 95. Re4 {[%clk 0:00:04.3]} 95...
Bb6 {[%clk 0:00:12.3]} 96. Re8 {[%clk 0:00:04.5]} 96... Ka7 {[%clk 0:00:06.6]}
97. Re6 {[%clk 0:00:04.9]} 97... Bc5 {[%clk 0:00:06.2]} 98. Kc7 {[%clk
0:00:05.3]} 98... Ka8 {[%clk 0:00:05.8]} 99. Re8+ {[%clk 0:00:05.5]} 99... Ka7
{[%clk 0:00:06.4]} 100. Kc6 {[%clk 0:00:06]} 100... Bd4 {[%clk 0:00:05.3]} 101.
Rd8 {[%clk 0:00:06.2]} 101... Be3 {[%clk 0:00:05.2]} 102. Rd3 {[%clk 0:00:06.6]}
102... Bf2 {[%clk 0:00:05]} 103. Ra3+ {[%clk 0:00:06]} 103... Kb8 {[%clk
0:00:05.4]} 104. Rf3 {[%clk 0:00:06.9]} 104... Bg1 {[%clk 0:00:05.4]} 105. Rf8+
{[%clk 0:00:06.1]} 105... Ka7 {[%clk 0:00:05.6]} 106. Rg8 {[%clk 0:00:07]}
106... Bf2 {[%clk 0:00:05.4]} 107. Rg2 {[%clk 0:00:06.9]} 107... Be3 {[%clk
0:00:05.4]} 108. Kc7 {[%clk 0:00:07.5]} 108... Bb6+ {[%clk 0:00:05.2]} 109. Kc8
{[%clk 0:00:06.5]} 109... Be3 {[%clk 0:00:06.1]} 110. Ra2+ {[%clk 0:00:06.5]}
110... Kb6 {[%clk 0:00:06.4]} 111. Kd7 {[%clk 0:00:07.3]} 111... Kb5 {[%clk
0:00:06.6]} 112. Kd6 {[%clk 0:00:06.6]} 112... Kc4 {[%clk 0:00:06.9]} 113. Ra4+
{[%clk 0:00:05.3]} 113... Kb5 {[%clk 0:00:06]} 114. Re4 {[%clk 0:00:03.4]}
114... Bc5+ {[%clk 0:00:05.8]} 115. Kd5 {[%clk 0:00:03.9]} 115... Bb6 {[%clk
0:00:06.4]} 116. Re2 {[%clk 0:00:03.4]} 116... Bg1 {[%clk 0:00:05.1]} 117. Rb2+
{[%clk 0:00:03.4]} 117... Ka6 {[%clk 0:00:05.2]} 118. Kc6 {[%clk 0:00:04.1]}
118... Ka7 {[%clk 0:00:05.4]} 119. Rb7+ {[%clk 0:00:02.7]} 119... Ka8 {[%clk
0:00:05.9]} 120. Rg7 {[%clk 0:00:03.5]} 120... Ba7 {[%clk 0:00:05.7]} 121. Rg2
{[%clk 0:00:02.9]} 121... Bb8 {[%clk 0:00:05.5]} 122. Rg8 {[%clk 0:00:02.6]}
122... Ka7 {[%clk 0:00:05.4]} 123. Kd7 {[%clk 0:00:03.3]} 123... Bh2 {[%clk
0:00:04.7]} 124. Kc8 {[%clk 0:00:04.2]} 124... Bb8 {[%clk 0:00:03.8]} 125. Rg7+
{[%clk 0:00:04.1]} 125... Ka8 {[%clk 0:00:04.4]} 126. Rb7 {[%clk 0:00:04.8]}
126... Ba7 {[%clk 0:00:04.8]} 127. Kc7 {[%clk 0:00:05.3]} 127... Bg1 {[%clk
0:00:04.6]} 128. Rb2 {[%clk 0:00:05.2]} 128... Ba7 {[%clk 0:00:04]} 129. Kc6
{[%clk 0:00:05]} 129... Bb8 {[%clk 0:00:04.2]} 130. Rg2 {[%clk 0:00:05.5]}
130... Ba7 {[%clk 0:00:04.6]} 131. Ra2 {[%clk 0:00:05]} 131... Kb8 {[%clk
0:00:04.6]} 132. Kb5 {[%clk 0:00:05.1]} 132... Ka8 {[%clk 0:00:04.4]} 133. Ka6
{[%clk 0:00:06]} 133... Bg1 {[%clk 0:00:02]} 134. Rg2 {[%clk 0:00:04.9]} 134...
Ba7 {[%clk 0:00:02.6]} 135. Rg8+ {[%clk 0:00:03.5]} 135... Bb8 {[%clk
0:00:03.2]} 136. Kb5 {[%clk 0:00:04.4]} 136... Kb7 {[%clk 0:00:03.5]} 137. Rg7+
{[%clk 0:00:05]} 137... Ka8 {[%clk 0:00:04.1]} 138. Kb6 {[%clk 0:00:05.9]}
138... Bh2 {[%clk 0:00:04.3]} 139. Ra7+ {[%clk 0:00:06.7]} 1/2-1/2

[Event "Late-Titled-Tuesday-Blitz-February-20-2024"]
[Site "Chess.com"]
[Date "2024.02.20"]
[Round "5"]
[White "dennisodessa"]
[Black "maroro07"]
[Result "1-0"]
[WhiteElo "2575"]
[BlackElo "2401"]
[TimeControl "180+1"]
[EndTime "14:50:22 PST"]
[Termination "dennisodessa won by resignation"]

1. d4 {[%clk 0:02:44.3]} 1... d6 {[%clk 0:02:58.9]} 2. c4 {[%clk 0:02:44.5]}
2... e5 {[%clk 0:02:58.6]} 3. d5 {[%clk 0:02:45]} 3... f5 {[%clk 0:02:57.4]} 4.
e4 {[%clk 0:02:45.7]} 4... Nf6 {[%clk 0:02:55.3]} 5. Nc3 {[%clk 0:02:44.9]} 5...
Be6 {[%clk 0:02:56.2]} 6. dxe6 {[%clk 0:02:43.7]} 6... fxe4 {[%clk 0:02:54.3]}
7. Nge2 {[%clk 0:02:35.4]} 7... Nc6 {[%clk 0:02:50.8]} 8. Ng3 {[%clk 0:02:34.6]}
8... Qe7 {[%clk 0:02:47.6]} 9. Nd5 {[%clk 0:02:34.7]} 9... Qd8 {[%clk
0:02:42.6]} 10. Nf5 {[%clk 0:02:15.6]} 10... g6 {[%clk 0:02:35.3]} 11. Bg5
{[%clk 0:02:14.6]} 11... gxf5 {[%clk 0:02:23.7]} 12. Bxf6 {[%clk 0:02:11.8]} 1-0